{"text_format":"3","workbook":"xlsx","n_sheets":7,"sheets":["CONSOLIDATED PRICING SCHEDULE ","PROVINCIAL OFFICE &MARLOTH BUIL","MIDDLEBURG HIGH COURT","EVANDER MAGISTRATE COURT","KWAMHLANGA HIGH COURT","BADPLAAS PERIODIC COURT","MARAPYANE PERIODIC COURT"],"not_rendered":{"images":1,"defined_names":14},"read":"whole","date_system":"1900"}

{"sheet":"CONSOLIDATED PRICING SCHEDULE ","index":0,"n_rows":27,"n_cols":5,"rows_kept":27,"merged":[[12,0,12,1],[23,1,26,1],[23,2,23,3],[23,4,23,5],[24,2,24,3],[24,4,24,5],[25,2,25,3],[25,4,25,5],[26,2,26,3],[26,4,26,5]]}
[null,"          SUPPLY CHAIN MANAGEMENT"]
[null,"              Pricing schedule"]
["RFx No","RFB 07 2025"]
["RFx Title","APPOINTMENT OF SERVICE PROVIDER FOR PROCUREMENT OF CLEANING AND GARDENING SERVICES FOR VARIOUS MAGISTRATE COURT FOR A PERIOD OF 24 MONTHS: MPUMALANGA PROVINCE"]
["Bidder Name "]
[]
["1. INSTRUCTION FOR COMPLETING THE PRICING SCHEDULE"]
["(a)  THIS PRICING SCHEDULE MUST BE SUBMITTED SEPARATELY FROM THE TECHNICAL RESPONSE, failing which the BID may be DISQUALIFIED."]
["(b)  Bidder must complete/enter YELLOW cells only"]
["(c)  Unit and Line prices must be VAT EXCLUSIVE and in South African Rand (ZAR) currency."]
["(e) The price must include all cost to deliver the goods or render the service, including all applicable taxes, duty fees, logistics/delivery, storage, labour, overtime and subsistance and travel"]
[]
[]
["ITEM","NAME OF COURT","TOTAL PRICE\n(incl VAT)"]
[1,"PROVINCIAL OFFICE & MARLOTH BUILDING",{"$f":"'PROVINCIAL OFFICE &MARLOTH BUIL'!H28","v":0}]
[2,"MIDDELBURG HIGH COURT",{"$f":"'MIDDLEBURG HIGH COURT'!H29","v":0}]
[3,"EVANDER MAGISTRATE COURT",{"$f":"'EVANDER MAGISTRATE COURT'!H29","v":0}]
[4,"KWAMHLANGA HIGH COURT",{"$f":"'KWAMHLANGA HIGH COURT'!H29","v":0}]
[5,"BADPLAAS PERIODICAL  COURT",{"$f":"'BADPLAAS PERIODIC COURT'!H29","v":0}]
[6," MARAPYANE PERIODIC COURT",{"$f":"'MARAPYANE PERIODIC COURT'!H29","v":0}]
[null,"TOTAL",{"$f":"SUM(C15:C20)","v":0}]
[]
[]
[null,"I, the bidder, confirm that the price(s) and rate(s) quoted cover all the goods and/or works specified in the bidding documents; that the price(s) or rate(s) cover all my obligations and I accept that any mistakes regarding price(s), rate(s) or calculations will be at my own risk.\n[Note: First convert to PDF, then add signature]"]
[null,null,"Name (above)",null,"Capacity"]
[]
[null,null,"Signature (above)",null,"Date"]

{"sheet":"PROVINCIAL OFFICE &MARLOTH BUIL","index":1,"n_rows":34,"n_cols":9,"rows_kept":34,"merged":[[12,0,12,2],[12,3,12,6],[30,1,33,1],[30,2,30,3],[30,4,30,5],[31,2,31,3],[31,4,31,5],[32,2,32,3],[32,4,32,5],[33,2,33,3],[33,4,33,5]]}
[null,"          SUPPLY CHAIN MANAGEMENT"]
[null,"              Pricing schedule"]
["RFx No","RFB 07 2025"]
["RFx Title","APPOINTMENT OF SERVICE PROVIDER FOR PROCUREMENT OF CLEANING AND GARDENING SERVICES FOR VARIOUS MAGISTRATE COURT FOR A PERIOD OF 36 MONTHS: MPUMALANGA PROVINCE"]
["Bidder Name "]
[]
["1. INSTRUCTION FOR COMPLETING THE PRICING SCHEDULE"]
["(a)  THIS PRICING SCHEDULE MUST BE SUBMITTED SEPARATELY FROM THE TECHNICAL RESPONSE, failing which the BID may be DISQUALIFIED."]
["(b)  Bidder must complete/enter YELLOW cells only"]
["(c)  Unit and Line prices must be VAT EXCLUSIVE and in South African Rand (ZAR) currency."]
["(e) The price must include all cost to deliver the goods or render the service, including all applicable taxes, duty fees, logistics/delivery, storage, labour, overtime and subsistance and travel"]
[]
[{"$nulls":3}," CLEANING AND GARDENING SERVICES"]
["ITEM","NAME OF COURT","QUANTITY","UNIT PRICE\n(excl VAT)","VAT RATE","UNIT PRICE\n(incl VAT)","TOTAL PRICE\n(incl VAT)","36-MONTH TOTAL (incl VAT)","Price clarification comment"]
[null,"PROVINCIAL & MARLOTH BUILDING"]
[1,"Labour:"]
[null,"Bidders are expected to pay their employees a salary not less than the minimum wage determined by the Department of labour. Cleaners are required to work an average of 22 days a month."]
[null,"Monthly Salaries / UIF / Compensation fund / Provident fund (cleaners)",6,0,{"v":0,"d":"0%"},{"$f":"D18 * (1+E18)","v":0},{"$f":"(D18 * (1+E18)) * C18","v":0},{"$f":"G18*36","v":0}]
[null,"Monthly Salaries / UIF / Compensation fund / Provident fund (Gardner)",2,0,{"v":0,"d":"0%"},{"$f":"D19 * (1+E19)","v":0},{"$f":"(D19 * (1+E19)) * C19","v":0},{"$f":"G19*36","v":0}]
[null,"Monthly Salaries / UIF / Compensation fund / Provident fund (full time supervisor)",1,0,{"v":0,"d":"0%"},0,0,0]
[null,"Cleaning Material:"]
[null,"Monthly Pricing for all cleaning material for the duration of the contract including compulsory Disinfectants (see attached Schedule D)",1,0,{"v":0.15,"d":"15%"},0,0,{"$f":"G22*36","v":0}]
[null,"Toiletries:  Toilet paper for ablution areas  must be replenished frequenltly as when needed"]
[null,"Monthly pricing of Two ply, white and good quality toilet paper. Toilet paper to consist of 350 sheets per roll (2x 48 packs per month)",2,0,{"v":0.15,"d":"15%"},0,0,0]
[null,"Hygiene Services "]
[null,"Monthly pricing of  She Bins and with  Bi-Weekly service/maintenance",5,0,{"v":0.15,"d":"15%"},0,0,0]
[null," Annual pricing of Anti-bacterial Hand Soap (2x 20l for 12 months)",2,0,{"v":0.15,"d":"15%"},0,0,{"$f":"G27*3","v":0}]
[null,"TOTAL",null,{"$f":"SUM(D18:D27)","v":0},null,{"$f":"SUM(F18:F27)","v":0},{"$f":"SUM(G18:G27)","v":0},{"$f":"SUM(H18:H27)","v":0}]
[]
[]
[null,"I, the bidder, confirm that the price(s) and rate(s) quoted cover all the goods and/or works specified in the bidding documents; that the price(s) or rate(s) cover all my obligations and I accept that any mistakes regarding price(s), rate(s) or calculations will be at my own risk.\n[Note: First convert to PDF, then add signature]"]
[null,null,"Name (above)",null,"Capacity"]
[]
[null,null,"Signature (above)",null,"Date"]

{"sheet":"MIDDLEBURG HIGH COURT","index":2,"n_rows":35,"n_cols":9,"rows_kept":35,"merged":[[12,0,12,2],[12,3,12,6],[31,1,34,1],[31,2,31,3],[31,4,31,5],[32,2,32,3],[32,4,32,5],[33,2,33,3],[33,4,33,5],[34,2,34,3],[34,4,34,5]]}
[null,"          SUPPLY CHAIN MANAGEMENT"]
[null,"              Pricing schedule"]
["RFx No","RFB 07 2025"]
["RFx Title","APPOINTMENT OF SERVICE PROVIDER FOR PROCUREMENT OF CLEANING AND GARDENING SERVICES FOR VARIOUS MAGISTRATE COURT FOR A PERIOD OF 36 MONTHS: MPUMALANGA PROVINCE"]
["Bidder Name "]
[]
["1. INSTRUCTION FOR COMPLETING THE PRICING SCHEDULE"]
["(a)  THIS PRICING SCHEDULE MUST BE SUBMITTED SEPARATELY FROM THE TECHNICAL RESPONSE, failing which the BID may be DISQUALIFIED."]
["(b)  Bidder must complete/enter YELLOW cells only"]
["(c)  Unit and Line prices must be VAT EXCLUSIVE and in South African Rand (ZAR) currency."]
["(e) The price must include all cost to deliver the goods or render the service, including all applicable taxes, duty fees, logistics/delivery, storage, labour, overtime and subsistance and travel"]
[]
[{"$nulls":3},"CLEANING AND GARDENING SERVICES"]
["ITEM","NAME OF COURT","QUANTITY","UNIT PRICE\n(excl VAT)","VAT RATE","UNIT PRICE\n(incl VAT)","TOTAL PRICE\n(incl VAT)","36-MONTH T0TAL (incl VAT)","Price clarification comment"]
[null,"MIDDELBURG HIGH COURT"]
[1,"Labour:"]
[null,"Bidders are expected to pay their employees a salary not less than the minimum wage determined by the Department of labour. Cleaners are required to work an average of 22 days a month."]
[null,"Monthly Salaries / UIF / Compensation fund / Provident fund (cleaners)",4,0,{"v":0,"d":"0%"},{"$f":"D18 * (1+E18)","v":0},{"$f":"(D18 * (1+E18)) * C18","v":0},{"$f":"G18*36","v":0}]
[null,"Monthly Salaries / UIF / Compensation fund / Provident fund (Gardner)",2,0,{"v":0,"d":"0%"},{"$f":"D19 * (1+E19)","v":0},{"$f":"(D19 * (1+E19)) * C19","v":0},{"$f":"G19*36","v":0}]
[null,"Monthly Salaries / UIF / Compensation fund / Provident fund (full time supervisor)",1,0,{"v":0,"d":"0%"},0,0,0]
[null,"Cleaning Material:"]
[null,"Monthly Pricing for all cleaning material for the duration of the contract including compulsory Disinfectants (see attached Schedule D)",1,0,{"v":0.15,"d":"15%"},{"$f":"D22 * (1+E22)","v":0},{"$f":"D22 * (1+E22)","v":0},0]
[null,"Toiletries:  Toilet paper for ablution areas  must be replenished frequenltly as when needed"]
[null,"Monthly pricing of Two ply, white and good quality toilet paper. Toilet paper to consist of 350 sheets per roll (5x 48 packs per month)",5,0,{"v":0.15,"d":"15%"},0,0,0]
[null,"Paper hand towels must be replenished twice a week. Tidy towel folded, good quality, 2 ply white only. (4x8pack per month)",4,0,{"v":0.15,"d":"15%"},0,0,0]
[null,"Hygiene Services "]
[null,"Monthly pricing of She Bins and with  Bi-Weekly service/maintenance",9,0,{"v":0.15,"d":"15%"},0,0,0]
[null,"Annual pricing of  Anti-bacterial Hand Soap (2x 25l for 12 months)",2,0,{"v":0.15,"d":"15%"},0,0,{"$f":"G28*3","v":0}]
[null,"TOTAL",null,{"$f":"SUM(D18:D28)","v":0},null,{"$f":"SUM(F18:F28)","v":0},{"$f":"SUM(G18:G28)","v":0},{"$f":"SUM(H18:H28)","v":0}]
[]
[]
[null,"I, the bidder, confirm that the price(s) and rate(s) quoted cover all the goods and/or works specified in the bidding documents; that the price(s) or rate(s) cover all my obligations and I accept that any mistakes regarding price(s), rate(s) or calculations will be at my own risk.\n[Note: First convert to PDF, then add signature]"]
[null,null,"Name (above)",null,"Capacity"]
[]
[null,null,"Signature (above)",null,"Date"]

{"sheet":"EVANDER MAGISTRATE COURT","index":3,"n_rows":35,"n_cols":9,"rows_kept":35,"merged":[[12,0,12,2],[12,3,12,6],[31,1,34,1],[31,2,31,3],[31,4,31,5],[32,2,32,3],[32,4,32,5],[33,2,33,3],[33,4,33,5],[34,2,34,3],[34,4,34,5]]}
[null,"          SUPPLY CHAIN MANAGEMENT"]
[null,"              Pricing schedule"]
["RFx No","RFB 07 2025"]
["RFx Title","APPOINTMENT OF SERVICE PROVIDER FOR PROCUREMENT OF CLEANING AND GARDENING SERVICES FOR VARIOUS MAGISTRATE COURT FOR A PERIOD OF 36 MONTHS: MPUMALANGA PROVINCE"]
["Bidder Name "]
[]
["1. INSTRUCTION FOR COMPLETING THE PRICING SCHEDULE"]
["(a)  THIS PRICING SCHEDULE MUST BE SUBMITTED SEPARATELY FROM THE TECHNICAL RESPONSE, failing which the BID may be DISQUALIFIED."]
["(b)  Bidder must complete/enter YELLOW cells only"]
["(c)  Unit and Line prices must be VAT EXCLUSIVE and in South African Rand (ZAR) currency."]
["(e) The price must include all cost to deliver the goods or render the service, including all applicable taxes, duty fees, logistics/delivery, storage, labour, overtime and subsistance and travel"]
[]
[{"$nulls":3},"CLEANING AND GARDENING SERVICES"]
["ITEM","NAME OF COURT","QUANTITY","UNIT PRICE\n(excl VAT)","VAT RATE","UNIT PRICE\n(incl VAT)","TOTAL PRICE\n(incl VAT)","36- MONTH TOTAL ( incl VAT)","Price clarification comment"]
[null,"EVANDER MAGISTRATE COURT"]
[1,"Labour:"]
[null,"Bidders are expected to pay their employees a salary not less than the minimum wage determined by the Department of labour. Cleaners are required to work an average of 22 days a month."]
[null,"Monthly Salaries / UIF / Compensation fund / Provident fund (cleaners)",4,0,{"v":0,"d":"0%"},{"$f":"D18 * (1+E18)","v":0},{"$f":"(D18 * (1+E18)) * C18","v":0},{"$f":"G18*36","v":0}]
[null,"Monthly Salaries / UIF / Compensation fund / Provident fund (Gardner)",2,0,{"v":0,"d":"0%"},{"$f":"D19 * (1+E19)","v":0},{"$f":"(D19 * (1+E19)) * C19","v":0},{"$f":"G19*36","v":0}]
[null,"Monthly Salaries / UIF / Compensation fund / Provident fund (full time supervisor)",1,0,{"v":0,"d":"0%"},0,0,0]
[null,"Cleaning Material:"]
[null,"Monthly Pricing for all cleaning material for the duration of the contract including compulsory Disinfectants (see attached Schedule D )",1,0,{"v":0.15,"d":"15%"},0,0,0]
[null,"Toiletries:  Toilet paper for ablution areas  must be replenished frequenltly as when needed",{"$nulls":5},0]
[null,"Monthly Picing of Two ply, white and good quality toilet paper. Toilet paper to consist of 350 sheets per roll (2x 48 pack per month)",2,0,{"v":0.15,"d":"15%"},0,0,0]
[null,"Paper hand towels must be replenished twice a day. Tidy towel folded, good quality, 2 ply white only.( 1x 8 Pack per month)",1,0,{"v":0.15,"d":"15%"},0,0,0]
[null,"Hygiene Services "]
[null,"Monthly pricing of She Bins and with  Bi- Weekly service/maintenance",7,0,{"v":0.15,"d":"15%"},0,0,0]
[null,"Annual pricing of Anti-bacterial Hand Soap  (2x 25l for 12 months)",2,0,{"v":0.15,"d":"15%"},0,0,{"$f":"G28*3","v":0}]
[null,"TOTAL",null,{"$f":"SUM(D18:D28)","v":0},null,{"$f":"SUM(F18:F28)","v":0},{"$f":"SUM(G18:G28)","v":0},{"$f":"SUM(H18:H28)","v":0}]
[]
[]
[null,"I, the bidder, confirm that the price(s) and rate(s) quoted cover all the goods and/or works specified in the bidding documents; that the price(s) or rate(s) cover all my obligations and I accept that any mistakes regarding price(s), rate(s) or calculations will be at my own risk.\n[Note: First convert to PDF, then add signature]"]
[null,null,"Name (above)",null,"Capacity"]
[]
[null,null,"Signature (above)",null,"Date"]

{"sheet":"KWAMHLANGA HIGH COURT","index":4,"n_rows":35,"n_cols":9,"rows_kept":35,"merged":[[12,0,12,2],[12,3,12,6],[31,1,34,1],[31,2,31,3],[31,4,31,5],[32,2,32,3],[32,4,32,5],[33,2,33,3],[33,4,33,5],[34,2,34,3],[34,4,34,5]]}
[null,"          SUPPLY CHAIN MANAGEMENT"]
[null,"              Pricing schedule"]
["RFx No","RFB 07 2025"]
["RFx Title","APPOINTMENT OF SERVICE PROVIDER FOR PROCUREMENT OF CLEANING AND GARDENING SERVICES FOR VARIOUS MAGISTRATE COURT FOR A PERIOD OF 36 MONTHS: MPUMALANGA PROVINCE"]
["Bidder Name "]
[]
["1. INSTRUCTION FOR COMPLETING THE PRICING SCHEDULE"]
["(a)  THIS PRICING SCHEDULE MUST BE SUBMITTED SEPARATELY FROM THE TECHNICAL RESPONSE, failing which the BID may be DISQUALIFIED."]
["(b)  Bidder must complete/enter YELLOW cells only"]
["(c)  Unit and Line prices must be VAT EXCLUSIVE and in South African Rand (ZAR) currency."]
["(e) The price must include all cost to deliver the goods or render the service, including all applicable taxes, duty fees, logistics/delivery, storage, labour, overtime and subsistance and travel"]
[]
[{"$nulls":3},"CLEANING AND GARDENING SERVICES"]
["ITEM","NAME OF COURT","QUANTITY","UNIT PRICE\n(excl VAT)","VAT RATE","UNIT PRICE\n(incl VAT)","TOTAL PRICE\n(incl VAT)","36-MONTH TOTAL (incl VAT)","Price clarification comment"]
[null,"KWAMHLANGA HIGH COURT"]
[1,"Labour:"]
[null,"Bidders are expected to pay their employees a salary not less than the minimum wage determined by the Department of labour. Cleaners are required to work an average of 12 days a month."]
[null,"Monthly Salaries / UIF / Compensation fund / Provident fund (cleaners)",1,0,{"v":0,"d":"0%"},{"$f":"D18 * (1+E18)","v":0},{"$f":"(D18 * (1+E18)) * C18","v":0},{"$f":"G18*36","v":0}]
[null,"Monthly Salaries / UIF / Compensation fund / Provident fund (Gardner)",1,0,{"v":0,"d":"0%"},{"$f":"D19 * (1+E19)","v":0},{"$f":"(D19 * (1+E19)) * C19","v":0},{"$f":"G19*36","v":0}]
[null,"Monthly Salaries / UIF / Compensation fund / Provident fund (full time supervisor)",1,0,{"v":0,"d":"0%"},0,0,0]
[null,"Cleaning Material:"]
[null,"Monthly Pricing for all cleaning material for the duration of the contract including compulsory Disinfectants (see attached Schedule D)",1,0,{"v":0.15,"d":"15%"},0,0,0]
[null,"Toiletries:  Toilet paper for ablution areas  must be replenished frequenltly as when needed"]
[null,"Monthly pricing of Two ply, white and good quality toilet paper. Toilet paper to consist of 350 sheets per roll( 1x 48 pack per month)",1,0,{"v":0.15,"d":"15%"},0,0,0]
[null,"Monthly pricing of Paper hand towel rolls  must be replenished twice a month. Paper hand towel rolls, good quality, 2 ply white only (1 x 8 pack per month)",1,0,{"v":0.15,"d":"15%"},0,0,0]
[null,"Hygiene Services "]
[null," Monthly pricing of She Bins and with  Bi-Weekly service/maintenance",2,0,{"v":0.15,"d":"15%"},0,0,0]
[null,"Annual pricing of Anti-bacterial Hand Soap  (1x 25l for 12 months)",1,0,{"v":0.15,"d":"15%"},0,0,{"$f":"G28*3","v":0}]
[null,"TOTAL",null,{"$f":"SUM(D18:D28)","v":0},null,{"$f":"SUM(F18:F28)","v":0},{"$f":"SUM(G18:G28)","v":0},{"$f":"SUM(H18:H28)","v":0}]
[]
[]
[null,"I, the bidder, confirm that the price(s) and rate(s) quoted cover all the goods and/or works specified in the bidding documents; that the price(s) or rate(s) cover all my obligations and I accept that any mistakes regarding price(s), rate(s) or calculations will be at my own risk.\n[Note: First convert to PDF, then add signature]"]
[null,null,"Name (above)",null,"Capacity"]
[]
[null,null,"Signature (above)",null,"Date"]

{"sheet":"BADPLAAS PERIODIC COURT","index":5,"n_rows":35,"n_cols":9,"rows_kept":35,"merged":[[12,0,12,2],[12,3,12,6],[31,1,34,1],[31,2,31,3],[31,4,31,5],[32,2,32,3],[32,4,32,5],[33,2,33,3],[33,4,33,5],[34,2,34,3],[34,4,34,5]]}
[null,"          SUPPLY CHAIN MANAGEMENT"]
[null,"              Pricing schedule"]
["RFx No","RFB 07 2025"]
["RFx Title","APPOINTMENT OF SERVICE PROVIDER FOR PROCUREMENT OF CLEANING AND GARDENING SERVICES FOR VARIOUS MAGISTRATE COURT FOR A PERIOD OF 36 MONTHS: MPUMALANGA PROVINCE"]
["Bidder Name "]
[]
["1. INSTRUCTION FOR COMPLETING THE PRICING SCHEDULE"]
["(a)  THIS PRICING SCHEDULE MUST BE SUBMITTED SEPARATELY FROM THE TECHNICAL RESPONSE, failing which the BID may be DISQUALIFIED."]
["(b)  Bidder must complete/enter YELLOW cells only"]
["(c)  Unit and Line prices must be VAT EXCLUSIVE and in South African Rand (ZAR) currency."]
["(e) The price must include all cost to deliver the goods or render the service, including all applicable taxes, duty fees, logistics/delivery, storage, labour, overtime and subsistance and travel"]
[]
[{"$nulls":3},"CLEANING AND GARDENING SERVICES"]
["ITEM","NAME OF COURT","QUANTITY","UNIT PRICE\n(excl VAT)","VAT RATE","UNIT PRICE\n(incl VAT)","TOTAL PRICE\n(incl VAT)",null,"Price clarification comment"]
[null,"BADPLAAS  PERIODIC COURT"]
[1,"Labour:"]
[null,"Bidders are expected to pay their employees a salary not less than the minimum wage determined by the Department of labour. Cleaners are required to work an average of 12 days a month."]
[null,"Monthly Salaries / UIF / Compensation fund / Provident fund (cleaners)",1,0,{"v":0,"d":"0%"},{"$f":"D18 * (1+E18)","v":0},{"$f":"(D18 * (1+E18)) * C18","v":0},{"$f":"G18*36","v":0}]
[null,"Monthly Salaries / UIF / Compensation fund / Provident fund (Gardner)",2,0,{"v":0,"d":"0%"},{"$f":"D19 * (1+E19)","v":0},{"$f":"(D19 * (1+E19)) * C19","v":0},{"$f":"G19*36","v":0}]
[null,"Monthly Salaries / UIF / Compensation fund / Provident fund (full time supervisor)",1,0,{"v":0,"d":"0%"},0,0,0]
[null,"Cleaning Material:",{"$nulls":5},0]
[null,"Monthly Pricing for all cleaning material for the duration of the contract including compulsory Disinfectants (see attached Schedule D)",1,0,{"v":0.15,"d":"15%"},0,0,0]
[null,"Toiletries:  Toilet paper for ablution areas  must be replenished frequenltly as when needed",{"$nulls":5},0]
[null,"Monthly pricing of Two ply, white and good quality toilet paper. Toilet paper to consist of 350 sheets per roll( 1x 48 pack per month)",1,0,{"v":0.15,"d":"15%"},0,0,0]
[null,"Monthly pricing of Paper hand towel rolls  must be replenished twice a month. Paper hand towel rolls, good quality, 2 ply white only (1 x 8pack per month)",1,0,{"v":0.15,"d":"15%"},0,0,0]
[null,"Hygiene Services ",{"$nulls":5},0]
[null," Monthly pricing of She Bins and with  Bi-Weekly service/maintenance",4,0,{"v":0.15,"d":"15%"},0,0,0]
[null,"Annual pricing of Anti-bacterial Hand Soap  (1x 25l for 12 months)",1,0,{"v":0.15,"d":"15%"},0,0,{"$f":"G28*3","v":0}]
[null,"TOTAL",null,{"$f":"SUM(D18:D28)","v":0},null,{"$f":"SUM(F18:F28)","v":0},{"$f":"SUM(G18:G28)","v":0},{"$f":"SUM(H18:H28)","v":0}]
[]
[]
[null,"I, the bidder, confirm that the price(s) and rate(s) quoted cover all the goods and/or works specified in the bidding documents; that the price(s) or rate(s) cover all my obligations and I accept that any mistakes regarding price(s), rate(s) or calculations will be at my own risk.\n[Note: First convert to PDF, then add signature]"]
[null,null,"Name (above)",null,"Capacity"]
[]
[null,null,"Signature (above)",null,"Date"]

{"sheet":"MARAPYANE PERIODIC COURT","index":6,"n_rows":35,"n_cols":9,"rows_kept":35,"merged":[[12,0,12,2],[12,3,12,6],[31,1,34,1],[31,2,31,3],[31,4,31,5],[32,2,32,3],[32,4,32,5],[33,2,33,3],[33,4,33,5],[34,2,34,3],[34,4,34,5]]}
[null,"          SUPPLY CHAIN MANAGEMENT"]
[null,"              Pricing schedule"]
["RFx No","RFB 07 2025"]
["RFx Title","APPOINTMENT OF SERVICE PROVIDER FOR PROCUREMENT OF CLEANING AND GARDENING SERVICES FOR VARIOUS MAGISTRATE COURT FOR A PERIOD OF 36 MONTHS: MPUMALANGA PROVINCE"]
["Bidder Name "]
[]
["1. INSTRUCTION FOR COMPLETING THE PRICING SCHEDULE"]
["(a)  THIS PRICING SCHEDULE MUST BE SUBMITTED SEPARATELY FROM THE TECHNICAL RESPONSE, failing which the BID may be DISQUALIFIED."]
["(b)  Bidder must complete/enter YELLOW cells only"]
["(c)  Unit and Line prices must be VAT EXCLUSIVE and in South African Rand (ZAR) currency."]
["(e) The price must include all cost to deliver the goods or render the service, including all applicable taxes, duty fees, logistics/delivery, storage, labour, overtime and subsistance and travel"]
[]
[{"$nulls":3},"CLEANING AND GARDENING SERVICES"]
["ITEM","NAME OF COURT","QUANTITY","UNIT PRICE\n(excl VAT)","VAT RATE","UNIT PRICE\n(incl VAT)","TOTAL PRICE\n(incl VAT)",null,"Price clarification comment"]
[null,"MARAPYANE PERIODIC COURT"]
[1,"Labour:"]
[null,"Bidders are expected to pay their employees a salary not less than the minimum wage determined by the Department of labour. Cleaners are required to work an average of 12 days a month."]
[null,"Monthly Salaries / UIF / Compensation fund / Provident fund (cleaners)",1,0,{"v":0,"d":"0%"},{"$f":"D18 * (1+E18)","v":0},{"$f":"(D18 * (1+E18)) * C18","v":0},{"$f":"G18*36","v":0}]
[null,"Monthly Salaries / UIF / Compensation fund / Provident fund (Gardner",3,0,{"v":0,"d":"0%"},{"$f":"D19 * (1+E19)","v":0},{"$f":"(D19 * (1+E19)) * C19","v":0},{"$f":"G19*36","v":0}]
[null,"Monthly Salaries / UIF / Compensation fund / Provident fund (full time supervisor",1,0,{"v":0,"d":"0%"},0,0,0]
[null,"Cleaning Material:"]
[null,"Monthly Pricing for all cleaning material for the duration of the contract including compulsory Disinfectants (see attached Schedule D)",1,0,{"v":0.15,"d":"15%"},0,0,0]
[null,"Toiletries:  Toilet paper for ablution areas  must be replenished frequenltly as when needed"]
[null,"Monthly pricing of Two ply, white and good quality toilet paper. Toilet paper to consist of 350 sheets per roll",1,0,{"v":0.15,"d":"15%"},0,0,0]
[null,"Monthly pricing of Paper hand towel rolls  must be replenished twice a month. Paper hand towel rolls, good quality, 2 ply white only (1 x8 pack per month)",1,0,{"v":0.15,"d":"15%"},0,0,0]
[null,"Hygiene Services "]
[null," Monthly pricing of She Bins and with  Bi-Weekly service/maintenance",4,0,{"v":0.15,"d":"15%"},0,0,0]
[null,"Annual pricing of Anti-bacterial Hand Soap  (1x 25l for 12 months)",1,0,{"v":0.15,"d":"15%"},0,0,{"$f":"G28*3","v":0}]
[null,"TOTAL",null,{"$f":"SUM(D18:D28)","v":0},null,{"$f":"SUM(F18:F28)","v":0},{"$f":"SUM(G18:G28)","v":0},{"$f":"SUM(H18:H28)","v":0}]
[]
[]
[null,"I, the bidder, confirm that the price(s) and rate(s) quoted cover all the goods and/or works specified in the bidding documents; that the price(s) or rate(s) cover all my obligations and I accept that any mistakes regarding price(s), rate(s) or calculations will be at my own risk.\n[Note: First convert to PDF, then add signature]"]
[null,null,"Name (above)",null,"Capacity"]
[]
[null,null,"Signature (above)",null,"Date"]